bitfinex-derivatives/quotes_BNBF0:USTF0_20250521
["timestamp","ask_amount","ask_price","bid_price","bid_amount"]
[1747822463479,0.26661763,653.65,651.8,0.59421832]
[1747822464073,1.358,653.64,651.81,0.59421832]
[1747822465275,1.358,653.64,651.82,0.59421832]
[1747822466279,1.358,653.64,651.83,0.59421832]
[1747822466687,0.26661865,653.63,651.83,0.59421832]
[1747822468283,0.26661865,653.63,651.84,0.59421832]
[1747822469182,1.358,653.64,651.84,0.59421832]
[1747822469487,0.26660436,653.62,651.84,0.59421832]
[1747822469683,0.26660436,653.62,651.85,0.59421832]
[1747822471187,0.26660436,653.62,651.86,0.59421832]
[1747822472288,1.358,653.64,651.87,0.59421832]
[1747822472588,0.26660231,653.61,651.87,0.59421832]
[1747822473188,0.26660231,653.61,651.88,0.59421832]
[1747822474287,0.26660231,653.61,651.89,0.59421832]
[1747822475286,1.358,653.64,651.89,0.59421832]
[1747822475586,0.26659925,653.6,651.89,0.59421832]
[1747822475791,0.26659925,653.6,651.88,0.64799162]
[1747822476691,0.26659925,653.6,651.89,0.59421832]
[1747822478291,1.358,653.64,651.89,0.59421832]
[1747822478587,0.26659517,653.59,651.9,0.59421832]
[1747822479992,0.26659517,653.59,651.91,0.59421832]
[1747822483198,0.26658904,653.58,651.92,0.59421832]
[1747822483393,0.26658904,653.58,651.93,0.59421832]
[1747822484299,1.358,653.64,651.93,0.59421832]
[1747822484901,1.358,653.64,651.94,1.24220994]
[1747822485603,0.26657781,653.63,651.94,1.24220994]
[1747822486705,0.26657781,653.63,651.95,0.59421832]
[1747822487305,1.358,653.64,651.95,0.59421832]
[1747822488508,0.26658495,653.63,651.96,0.59421832]
[1747822490309,1.358,653.64,651.97,0.59421832]
[1747822491008,3.82364943,653.66,651.97,0.59421832]
[1747822491410,0.26658495,653.65,651.97,0.59421832]
[1747822491709,0.26658495,653.65,651.98,0.59421832]
[1747822492809,0.26658495,653.65,651.99,0.59421832]
[1747822493310,3.82364943,653.66,651.99,0.59421832]
[1747822494411,3.82364943,653.82,652.0,0.59421832]
[1747822494611,0.26658291,653.65,652.0,0.59421832]
[1747822494810,3.82364943,653.82,652.0,0.59421832]
[1747822495110,1.529,653.64,652.0,0.59421832]
[1747822495411,1.529,653.64,652.01,0.59421832]
[1747822496111,0.26658291,653.63,652.01,0.59421832]
[1747822496804,0.26658291,653.63,652.02,0.59421832]
[1747822498010,0.26658291,653.63,652.03,0.59421832]
[1747822499412,1.529,653.64,652.03,0.59421832]
[1747822499613,0.26658087,653.62,652.04,0.59421832]
[1747822500313,0.26658087,653.62,652.05,0.59421832]
[1747822502210,1.529,653.64,652.05,0.59421832]
[1747822502416,1.529,653.64,651.97,0.59421832]
[1747822503516,0.26660334,653.63,651.98,0.59421832]
[1747822504916,0.26660334,653.63,651.99,0.59421832]
[1747822505311,1.529,653.64,651.99,0.59421832]
[1747822506115,1.529,653.64,652.0,0.59421832]
[1747822506414,0.26660129,653.63,652.0,0.59421832]
[1747822507820,3.82364943,653.52,651.87,0.64799162]
[1747822509220,3.82364943,653.52,651.88,0.59421832]
[1747822509414,0.26664419,653.51,651.88,0.59421832]
[1747822510819,0.26664419,653.51,651.72,0.59421832]
[1747822511220,3.82364943,653.52,651.72,0.59421832]
[1747822511922,3.82364943,653.52,651.73,0.59421832]
[1747822512524,0.26666258,653.51,651.73,0.59421832]
[1747822513218,0.26666258,653.51,651.74,0.59421832]
[1747822513426,0.26666258,653.51,651.75,0.9179379]
[1747822513620,0.26666258,653.51,651.76,0.9179379]
[1747822513829,0.26666258,653.51,651.77,0.9179379]
[1747822514020,0.26666258,653.51,651.78,2.06346167]
[1747822514220,3.82364943,653.52,651.79,0.9179379]
[1747822514422,3.82364943,653.52,651.8,0.9179379]
[1747822514623,3.82364943,653.52,651.81,0.9179379]
[1747822514822,3.82364943,653.52,651.82,2.65767999]
[1747822515022,3.82364943,653.52,651.83,0.61136229]
[1747822515223,0.26666156,653.51,651.84,0.61123563]
[1747822515426,0.26666156,653.51,651.85,0.61123563]
[1747822515626,0.26666156,653.51,651.86,0.61123563]
[1747822515823,0.26666156,653.51,651.87,0.61123563]
[1747822516024,0.26666156,653.51,651.88,0.61123563]
[1747822516223,0.26666156,653.51,651.88,0.59421832]
[1747822517322,3.82364943,653.52,651.88,0.59421832]
[1747822517723,3.82364943,653.52,651.6,0.59421832]
[1747822517926,3.82364943,653.52,651.61,0.91740186]
[1747822518227,0.26668404,653.51,651.62,2.06359017]
[1747822518421,0.26668404,653.51,651.63,2.06359017]
[1747822518623,0.26668404,653.51,651.64,0.91740186]
[1747822518826,0.26668404,653.51,651.65,0.91740186]
[1747822519122,0.26668404,653.51,651.66,2.06347825]
[1747822519326,0.26668404,653.51,651.67,0.91728994]
[1747822519526,0.26668404,653.51,651.68,2.06347825]
[1747822519725,0.26668404,653.51,651.69,0.91728994]
[1747822519924,0.26668404,653.51,651.7,2.06347825]
[1747822520128,0.26668404,653.51,651.71,0.91728994]
[1747822520329,0.26668404,653.51,651.72,2.06347825]
[1747822520529,0.26668404,653.51,651.73,0.91728994]
[1747822520727,0.26668404,653.51,651.74,0.61071079]
[1747822520928,0.26668404,653.51,651.75,2.0634771]
[1747822521126,0.26668404,653.51,651.76,0.91728879]
[1747822521326,0.26668404,653.51,651.77,2.0634771]
[1747822521531,0.26668404,653.51,651.78,2.0634771]
[1747822521732,0.26668404,653.51,651.79,0.61071079]
[1747822521926,0.26668404,653.51,651.8,0.61071079]
[1747822522126,0.26668404,653.51,651.81,0.61071079]
[1747822522328,0.26668404,653.51,651.82,0.61071079]
[1747822522529,3.82364943,653.18,651.83,0.61071079]
[1747822522734,3.82364943,653.18,651.84,0.61031003]
[1747822522939,3.82364943,653.18,651.85,0.61031003]
[1747822523139,3.82364943,653.18,651.86,0.61031003]
[1747822523340,3.82364943,653.18,651.81,0.59421832]
[1747822523544,3.82364943,653.18,651.82,0.61022936]
[1747822523738,3.82364943,653.18,651.83,0.61022936]
[1747822523936,3.82364943,653.18,651.84,0.61022936]
[1747822524142,3.82364943,653.18,651.85,0.61022936]
[1747822524338,3.82364943,653.18,651.67,0.59421832]
[1747822524545,3.82364943,653.18,651.68,0.91671986]
[1747822524843,3.82364943,653.18,651.69,2.06134828]
[1747822525039,3.82364943,653.18,651.7,0.91671986]
[1747822525243,3.82364943,653.18,651.71,0.91671986]
[1747822525543,3.82364943,653.18,651.72,0.91671986]
[1747822525738,3.82364943,653.18,651.73,2.06134828]
[1747822525939,1.53,653.17,651.74,0.91671986]
[1747822526140,1.53,653.17,651.75,2.06134828]
[1747822526341,1.53,653.17,651.76,0.91671986]
[1747822526543,1.53,653.17,651.77,2.06134828]
[1747822526744,1.53,653.17,651.78,0.91671986]
[1747822526944,1.53,653.17,651.79,0.61014936]
[1747822527138,1.53,653.17,651.8,0.59421832]
[1747822528743,1.53,653.17,651.59,0.64799162]
[1747822528938,1.53,653.17,651.6,0.91737389]
[1747822529137,1.53,653.17,651.61,2.06359211]
[1747822529341,1.53,653.17,651.62,0.91737389]
[1747822529644,1.53,653.17,651.63,2.06359211]
[1747822529838,1.53,653.17,651.64,0.91737389]
[1747822530139,1.53,653.17,651.65,1.7569735]
[1747822530343,1.53,653.17,651.66,1.2049736]
[1747822530543,1.53,653.17,651.67,0.61075528]
[1747822530745,1.53,653.17,651.68,0.61075528]
[1747822530945,1.53,653.17,651.69,0.61075528]
[1747822531144,1.53,653.17,651.66,0.59421832]
[1747822531340,1.53,653.17,651.67,0.61064716]
[1747822531544,1.53,653.17,651.68,0.61064716]
[1747822531741,1.53,653.17,651.7,0.59421832]
[1747822532740,1.53,653.17,651.5,0.59421832]
[1747822532938,1.53,653.17,651.51,2.06319154]
[1747822533145,1.53,653.17,651.52,2.06319154]
[1747822533344,1.53,653.17,651.53,0.91712772]
[1747822533546,1.53,653.17,651.54,0.91702731]
[1747822533845,1.53,653.17,651.55,2.06309113]
[1747822534038,1.53,653.17,651.56,0.91702731]
[1747822534242,1.53,653.17,651.57,0.91702731]
[1747822534444,1.53,653.17,651.58,2.06309113]
[1747822534740,1.53,653.17,651.59,0.91702731]
[1747822535045,1.53,653.17,651.6,2.65730945]
[1747822535240,1.53,653.17,651.61,0.91702731]
[1747822535445,1.53,653.17,651.62,0.91686937]
[1747822535645,1.53,653.17,651.63,0.91686937]
[1747822535840,1.53,653.17,651.64,0.61023905]
[1747822536043,1.53,653.17,651.65,0.61023905]
[1747822536244,1.53,653.17,651.66,0.61023905]
[1747822536443,1.53,653.17,651.67,0.61023905]
[1747822536746,3.82364943,653.03,651.66,0.59421832]
[1747822536943,3.82364943,653.03,651.67,0.61012389]
[1747822537144,3.82364943,653.03,651.66,0.59421832]
[1747822537343,3.82364943,653.03,651.67,0.61008079]
[1747822537546,3.82364943,653.03,651.66,0.59421832]
[1747822537745,3.82364943,653.03,651.67,0.61007755]
[1747822537946,3.82364943,653.03,651.54,0.59421832]
[1747822538246,3.82364943,653.03,651.55,2.06335275]
[1747822538452,3.82364943,653.03,651.56,0.91670776]
[1747822538745,3.82364943,653.03,651.57,2.06335275]
[1747822538949,3.82364943,653.03,651.58,2.06335275]
[1747822539148,3.82364943,653.03,651.59,0.91670776]
[1747822539344,3.82364943,653.03,651.6,0.91670776]
[1747822539549,3.82364943,653.03,651.61,0.91670776]
[1747822539746,3.82364943,653.03,651.62,0.91670776]
[1747822539950,3.82364943,653.03,651.63,0.91670776]
[1747822540151,3.82364943,653.03,651.64,0.61007853]
[1747822540352,3.82364943,653.03,651.65,0.61007853]
[1747822540651,3.82364943,653.03,651.66,0.61007853]
[1747822540851,3.82364943,653.03,651.67,0.61007853]
[1747822541151,3.82364943,653.03,651.62,0.59421832]
[1747822541345,3.82364943,653.03,651.63,0.91658232]
[1747822541548,3.82364943,653.03,651.68,0.59421832]
[1747822542853,3.82364943,653.03,651.53,0.59421832]
[1747822543054,3.82364943,653.03,651.54,0.91657832]
[1747822543250,3.82364943,653.03,651.55,2.06374476]
[1747822543454,3.82364943,653.03,651.56,0.91657832]
[1747822543655,3.82364943,653.03,651.57,2.06374476]
[1747822543849,3.82364943,653.03,651.58,0.91657832]
[1747822544049,3.82364943,653.03,651.59,0.91657832]
[1747822544251,3.82364943,653.03,651.6,0.9165582]
[1747822544449,3.82364943,653.03,651.61,0.9165582]
[1747822544648,3.82364943,653.03,651.62,2.06372464]
[1747822544850,3.82364943,653.03,651.63,0.9165582]
[1747822545051,3.82364943,653.03,651.64,0.60992841]
[1747822545255,3.82364943,653.03,651.65,0.60992841]
[1747822545455,3.82364943,653.03,651.66,0.60992841]
[1747822545650,3.82364943,653.03,651.67,0.60992841]
[1747822545853,3.82364943,653.03,651.58,0.59421832]
[1747822546053,1.09,653.02,651.59,0.91665215]
[1747822546247,1.09,653.02,651.6,2.06399983]
[1747822546451,1.09,653.02,651.61,2.06399983]
[1747822546655,1.09,653.02,651.62,0.91665215]
[1747822546855,1.09,653.02,651.63,0.91665215]
[1747822547055,1.09,653.02,651.64,0.61002245]
[1747822547254,1.09,653.02,651.65,0.61002245]
[1747822547457,1.09,653.02,651.66,0.61002245]
[1747822547757,1.09,653.02,651.67,0.61002245]
[1747822547951,1.09,653.02,651.68,0.61018295]
[1747822548150,1.09,653.02,651.65,0.59421832]
[1747822548357,1.09,653.02,651.66,0.61018145]
[1747822548556,1.09,653.02,651.67,0.61018145]
[1747822548752,1.09,653.02,651.68,1.20439977]
[1747822548952,1.09,653.02,651.68,0.59421832]
[1747822550157,1.09,653.02,651.53,0.59421832]
[1747822550353,1.09,653.02,651.54,0.91692551]
[1747822550550,1.09,653.02,651.55,0.91692551]
[1747822550755,1.09,653.02,651.56,2.06490067]
[1747822550953,1.09,653.02,651.57,2.06490067]
[1747822551155,1.09,653.02,651.58,0.91692551]
[1747822551356,1.09,653.02,651.59,0.91692551]
[1747822551556,1.09,653.02,651.6,2.06489005]
[1747822551757,1.09,653.02,651.61,1.51113321]
[1747822551956,1.09,653.02,651.62,2.06489005]
[1747822552157,1.09,653.02,651.63,0.91691489]
[1747822552359,1.09,653.02,651.64,2.06489005]
[1747822552654,1.09,653.02,651.65,0.91691489]
[1747822552856,1.09,653.02,651.66,0.91691489]
[1747822553056,1.09,653.02,651.67,2.06489005]
[1747822553254,1.09,653.02,651.68,0.91705334]
[1747822553561,1.09,653.02,651.69,1.75842431]
[1747822553757,1.09,653.02,651.7,0.61044915]
[1747822553961,1.09,653.02,651.71,0.61044915]
[1747822554161,1.09,653.02,651.72,0.61044915]
[1747822554462,1.09,653.02,651.73,0.61044915]
[1747822554662,1.09,653.02,651.74,0.61044915]
[1747822554856,1.09,653.02,651.75,0.61044915]
[1747822555060,1.09,653.02,651.61,0.59421832]
[1747822555364,1.09,653.02,651.73,0.59421832]
[1747822555563,1.09,653.02,651.74,0.61080619]
[1747822556262,1.09,653.02,651.75,0.59421832]
[1747822556458,1.09,653.02,651.76,0.61080619]
[1747822557859,1.09,653.02,651.77,0.59421832]
[1747822558465,1.09,653.02,651.78,0.61157516]
[1747822558763,1.09,653.02,651.77,0.59421832]
[1747822558963,1.09,653.02,651.78,0.61157281]
[1747822559257,1.09,653.02,651.79,0.59421832]
[1747822561259,1.09,653.02,651.61,0.64799162]
[1747822561458,1.09,653.02,651.62,2.06892967]
[1747822561758,1.09,653.02,651.63,0.91854761]
[1747822561963,1.09,653.02,651.64,2.06892967]
[1747822562167,1.09,653.02,651.65,0.91854761]
[1747822562464,1.09,653.02,651.66,0.91854761]
[1747822562664,1.09,653.02,651.67,2.06892967]
[1747822562861,1.09,653.02,651.68,0.91854761]
[1747822563061,1.09,653.02,651.69,2.06892967]
[1747822563266,1.09,653.02,651.7,0.91855413]
[1747822563467,1.09,653.02,651.71,2.06893619]
[1747822563662,1.09,653.02,651.72,0.91855413]
[1747822563962,1.09,653.02,651.73,2.06893619]
[1747822564162,3.82364943,653.14,651.74,0.91855325]
[1747822564363,3.82364943,653.14,651.75,1.76232278]
[1747822564663,3.82364943,653.14,651.76,0.61194072]
[1747822564862,3.82364943,653.14,651.77,0.61194072]
[1747822565064,3.82364943,653.14,651.78,0.6123789]
[1747822565264,3.82364943,653.14,651.79,0.6123789]
[1747822565459,3.82364943,653.14,651.8,0.6123789]
[1747822565660,3.82364943,653.14,651.81,0.6123789]
[1747822565860,3.82364943,653.14,651.74,0.59421832]
[1747822566062,3.82364943,653.14,651.75,2.07063616]
[1747822566264,3.82364943,653.14,651.76,0.61251481]
[1747822566461,3.82364943,653.14,651.77,0.59421832]
[1747822566666,1.44673207,653.13,651.78,0.61251481]
[1747822566963,1.44673207,653.13,651.79,0.61264916]
[1747822567164,1.44673207,653.13,651.8,0.61288976]
[1747822567462,1.44673207,653.13,651.77,0.59421832]
[1747822567662,1.44673207,653.13,651.78,0.61281332]
[1747822567866,1.44673207,653.13,651.79,0.61281332]
[1747822568066,1.44673207,653.13,651.77,0.59421832]
[1747822568268,3.82364943,653.11,651.79,0.59421832]
[1747822568466,3.82364943,653.11,651.8,0.61303913]
[1747822569467,3.82364943,653.11,651.81,0.59421832]
[1747822569672,0.26673003,653.1,651.82,0.61303913]
[1747822570272,0.26673003,653.1,651.81,0.59421832]
[1747822570572,0.26673003,653.1,651.82,0.61333704]
[1747822570772,0.26673003,653.1,651.63,0.64799162]
[1747822570972,0.26673003,653.1,651.64,0.91994807]
[1747822571176,0.26673003,653.1,651.65,2.07204345]
[1747822571374,0.26673003,653.1,651.66,0.91994807]
[1747822571569,0.26673003,653.1,651.67,2.07204345]
[1747822571773,0.26673003,653.1,651.68,0.91994807]
[1747822571969,0.26673003,653.1,651.69,0.90084959]
[1747822572169,0.26673003,653.1,651.7,0.91999123]
[1747822572373,0.26673003,653.1,651.71,2.07208661]
[1747822572569,0.26673003,653.1,651.72,0.91999123]
[1747822572774,0.26673003,653.1,651.73,0.91999123]
[1747822572969,0.26673003,653.1,651.74,2.07208661]
[1747822573169,0.26673003,653.1,651.75,0.91999123]
[1747822573476,0.26673003,653.1,651.76,2.07208661]
[1747822573676,0.26673003,653.1,651.77,0.91999123]
[1747822573975,0.26673003,653.1,651.78,0.91999123]
[1747822574169,0.26673003,653.1,651.79,2.07208661]
[1747822574370,3.82364943,653.11,651.8,0.91999123]
[1747822574570,3.82364943,653.11,651.81,2.07208661]
[1747822574771,3.82364943,653.11,651.82,0.91999123]
[1747822574970,3.82364943,653.11,651.83,2.66630493]
[1747822575175,3.82364943,653.11,651.84,0.61335996]
[1747822575377,3.82364943,653.11,651.85,1.76545534]
[1747822575576,3.82364943,653.11,651.86,0.61302703]
[1747822575775,3.82364943,653.11,651.87,0.61302703]
[1747822575973,3.82364943,653.11,651.88,0.61302275]
[1747822576178,3.82364943,653.11,651.89,0.61302275]
[1747822576478,3.82364943,653.11,651.9,0.61302275]
[1747822576778,3.82364943,653.11,651.83,0.59421832]
[1747822576974,3.82364943,653.11,651.91,0.59421832]
[1747822577573,4.09035391,653.11,651.91,0.59421832]
[1747822578181,4.09035391,653.11,651.64,0.59421832]
[1747822578381,4.09035391,653.11,651.65,0.91989302]
[1747822578682,4.09035391,653.11,651.66,2.07065202]
[1747822578976,3.82364943,653.11,651.67,0.91989302]
[1747822579182,3.82364943,653.11,651.68,2.0706504]
[1747822579481,1.18,653.13,651.69,0.9198914]
[1747822579683,1.18,653.13,651.7,2.0706504]
[1747822579881,1.18,653.13,651.71,2.0706504]
[1747822580081,1.18,653.13,651.72,0.9198914]
[1747822580282,1.18,653.13,651.73,2.0706504]
[1747822580577,1.18,653.13,651.74,2.0706504]
[1747822580783,1.18,653.13,651.75,0.91990839]
[1747822580983,1.18,653.13,651.76,0.91990839]
[1747822581285,1.18,653.13,651.77,2.07066739]
[1747822581478,1.18,653.13,651.78,2.07066739]
[1747822581678,1.18,653.13,651.79,0.91990839]
[1747822581883,1.18,653.13,651.8,2.07066739]
[1747822582083,1.18,653.13,651.81,0.91990839]
[1747822582282,1.18,653.13,651.82,0.91990839]
[1747822582476,1.18,653.13,651.83,1.45735679]
[1747822582677,1.18,653.13,651.84,0.9200682]
[1747822582981,1.18,653.13,651.85,0.61347041]
[1747822583181,1.18,653.13,651.86,0.61347041]
[1747822583378,1.18,653.13,651.87,0.61347041]
[1747822583582,1.18,653.13,651.88,1.21562436]
[1747822583781,1.18,653.13,651.89,0.61347041]
[1747822584083,1.18,653.13,651.9,1.4568652]
[1747822584283,1.18,653.13,651.91,0.92002537]
[1747822584485,1.18,653.13,651.92,0.92002537]
[1747822584685,1.18,653.13,651.93,0.92002537]
[1747822584881,1.18,653.13,651.94,0.92001991]
[1747822585084,1.18,653.13,651.95,2.07031466]
[1747822585284,1.18,653.13,651.96,0.61347041]
[1747822585481,1.18,653.13,651.97,0.61347041]
[1747822585786,1.18,653.13,651.98,0.61347041]
[1747822585988,1.18,653.13,651.99,0.61347041]
[1747822586189,1.18,653.13,652.0,0.61347041]
[1747822586389,1.18,653.13,651.96,0.60215395]
[1747822586390,1.18,653.13,652.01,0.61347041]
[1747822586582,1.18,653.13,651.96,0.60215395]
[1747822586784,1.18,653.13,651.97,1.21556015]
[1747822586987,1.18,653.13,651.98,0.6134062]
[1747822588591,1.18,653.13,651.99,0.60215395]
[1747822588792,1.18,653.13,652.0,0.6134062]
[1747822588990,1.18,653.13,651.99,0.60215395]
[1747822590191,1.18,653.13,652.0,0.60215395]
[1747822591793,1.18,653.13,652.01,0.60215395]
[1747822593490,1.18,653.13,652.02,0.60215395]
[1747822594793,1.18,653.13,652.03,0.60215395]
[1747822595992,1.18,653.13,651.73,0.64638802]
[1747822596191,1.18,653.13,651.74,0.91950925]
[1747822596389,1.18,653.13,651.75,0.91950925]
[1747822596589,3.82364943,653.58,651.76,2.06918618]
[1747822596792,0.2666871,653.27,651.77,0.91950925]
[1747822597093,3.82364943,653.58,651.78,2.06918618]
[1747822597395,3.82364943,653.58,651.84,0.64638802]
[1747822597595,3.82364943,653.58,651.85,0.91950925]
[1747822597797,3.82364943,653.58,651.86,2.06918618]
[1747822598097,3.82364943,653.58,651.87,0.30654744]
[1747822598296,3.82364943,653.58,651.88,0.30654744]
[1747822598490,0.26662478,653.57,651.89,2.06906186]
[1747822598690,0.26662478,653.57,651.9,0.91938493]
[1747822598894,0.26662478,653.57,651.91,2.06906186]
[1747822599091,0.26662478,653.57,651.92,0.91938493]
[1747822599296,1.64162478,653.57,651.93,2.06906186]
[1747822599497,1.64162478,653.57,651.94,0.91938493]
[1747822599698,1.64162478,653.57,651.95,0.91938493]
[1747822599901,1.64162478,653.57,651.96,0.91938493]
[1747822600100,1.64162478,653.57,651.97,0.91938493]
[1747822600399,1.64162478,653.57,651.98,2.06906186]
[1747822600600,1.64162478,653.57,651.99,0.61283749]
[1747822600801,1.64162478,653.57,652.0,0.61283749]
[1747822601098,3.82364943,653.32,652.01,0.61283749]
[1747822601302,3.82364943,653.32,652.02,0.61283749]
[1747822601498,3.82364943,653.32,651.99,0.60163386]
[1747822601703,3.82364943,653.32,652.0,0.61271885]
[1747822602002,3.82364943,653.32,652.01,0.61271885]
[1747822602201,3.82364943,653.32,652.02,0.61271885]
[1747822602404,0.26663295,653.31,652.03,1.21435271]
[1747822602598,0.26663295,653.31,652.04,0.61271885]
[1747822602801,0.26663295,653.31,652.05,0.61271885]
[1747822603100,0.26663295,653.31,652.03,0.60163386]
[1747822603298,0.26663295,653.31,652.04,0.61249502]
[1747822603501,0.26663295,653.31,652.05,0.61249502]
[1747822603803,0.26663295,653.31,652.05,0.60163386]
[1747822604107,0.26663295,653.31,652.06,0.61244114]
[1747822604308,3.82364943,653.32,652.05,0.60163386]
[1747822604506,3.82364943,653.32,652.06,0.61234683]
[1747822604807,3.82364943,653.32,652.05,0.60163386]
[1747822605304,3.82364943,653.32,652.06,0.60163386]
[1747822607511,3.82364943,653.32,652.07,0.60163386]
[1747822608510,3.82364943,653.32,651.86,0.64638802]
[1747822608511,3.82364943,653.32,652.08,0.60163386]
[1747822609711,3.82364943,653.32,652.09,0.60163386]
[1747822610913,3.82364943,653.32,652.1,0.60163386]
[1747822612314,3.82364943,653.3,651.88,0.64638802]
[1747822612514,3.82364943,653.3,651.89,2.06507717]
[1747822612816,1.06,653.29,651.9,0.91859824]
[1747822613012,1.06,653.29,651.91,0.91859824]
[1747822613214,1.06,653.29,651.92,0.91859824]
[1747822613411,1.06,653.29,651.93,0.91859824]
[1747822613617,1.06,653.29,651.94,2.06507717]
[1747822613813,1.06,653.29,651.95,0.91859824]
[1747822614012,1.06,653.29,651.96,2.06507717]
[1747822614211,1.06,653.29,651.97,0.91859824]
[1747822614410,1.06,653.29,651.98,2.06507717]
[1747822614616,1.06,653.29,651.99,0.61210667]
[1747822614816,1.06,653.29,652.0,0.61210667]
[1747822615011,1.06,653.29,652.01,0.61210667]
[1747822615211,1.06,653.29,652.02,0.61210667]
[1747822615411,1.06,653.29,652.03,0.61210667]
[1747822615615,1.06,653.29,652.04,1.21257966]
[1747822615816,1.06,653.29,652.05,0.61182802]
[1747822616018,1.06,653.29,652.04,0.60047299]
[1747822616211,1.06,653.29,652.05,0.61183328]
[1747822616412,1.06,653.29,652.04,0.60047299]
[1747822616616,1.06,653.29,652.05,0.61177951]
[1747822616816,1.06,653.29,652.06,0.61177951]
[1747822617016,1.06,653.29,652.05,0.60047299]
[1747822618719,1.06,653.29,652.06,0.60047299]
[1747822619520,1.06,653.29,652.07,0.61167747]
[1747822619715,1.06,653.29,652.08,0.61156953]
[1747822619920,1.06,653.29,652.09,0.61156953]
[1747822620116,1.06,653.29,652.1,0.61156953]
[1747822620317,1.06,653.29,652.11,0.61156953]
[1747822620513,1.06,653.29,652.12,0.61156953]
[1747822620720,1.06,653.29,652.13,0.61156953]
[1747822620919,1.06,653.29,652.14,0.61141228]
[1747822621120,1.06,653.29,652.15,0.61141228]
[1747822621320,1.06,653.29,652.16,0.60047299]
[1747822623122,1.06,653.29,652.17,0.60047299]
[1747822624323,1.06,653.29,651.94,0.64638802]
[1747822624526,1.06,653.29,651.95,0.91757311]
[1747822624722,1.06,653.29,651.96,2.06081832]
[1747822624923,1.06,653.29,651.97,0.91757311]
[1747822625123,1.06,653.29,651.98,0.91757311]
[1747822625323,1.06,653.29,651.99,2.06081832]
[1747822625519,1.06,653.29,652.0,0.91757311]
[1747822625724,1.06,653.29,652.01,2.06097521]
[1747822625924,1.06,653.29,652.02,2.06097521]
[1747822626125,1.06,653.29,652.03,0.91757937]
[1747822626326,1.06,653.29,652.04,2.06097521]
[1747822626528,1.06,653.29,652.05,0.91757937]
[1747822626727,1.06,653.29,652.06,0.61113318]
[1747822626928,1.06,653.29,652.07,0.61113318]
[1747822627227,1.06,653.29,652.08,0.61113318]
[1747822627420,1.06,653.29,652.09,0.61099677]
[1747822627623,1.06,653.29,652.1,0.61099677]
[1747822627823,1.06,653.29,652.11,0.61099677]
[1747822628023,1.06,653.29,652.1,0.59949596]
[1747822628328,1.06,653.29,652.11,0.61088109]
[1747822628528,1.06,653.29,652.1,0.59949596]
[1747822628723,1.06,653.29,652.11,0.61068232]
[1747822628922,1.06,653.29,652.12,0.61068232]
[1747822629124,1.06,653.29,652.1,0.59949596]
[1747822629428,1.06,653.29,652.11,0.6107949]
[1747822629626,1.06,653.29,652.12,0.6107949]
[1747822629823,1.06,653.29,652.1,0.59949596]
[1747822630021,1.06,653.29,652.11,0.61075904]
[1747822630225,1.06,653.29,652.12,0.61075904]
[1747822630428,1.06,653.29,652.13,0.61075904]
[1747822630628,1.06,653.29,652.1,0.59949596]
[1747822630830,1.06,653.29,652.11,0.61079555]
[1747822631125,1.06,653.29,652.12,0.61079555]
[1747822631328,1.06,653.29,652.13,0.61079555]
[1747822631524,1.06,653.29,652.1,0.59949596]
[1747822631726,1.06,653.29,652.11,0.61085002]
[1747822631928,1.06,653.29,652.12,0.61085002]
[1747822632126,1.06,653.29,652.13,0.61085002]
[1747822632427,1.06,653.29,652.1,0.59949596]
[1747822632631,1.06,653.29,652.11,0.61082093]
[1747822632831,1.06,653.29,652.12,0.61082093]
[1747822633030,1.06,653.29,652.13,0.61082093]
[1747822633231,1.06,653.29,652.12,0.59949596]
[1747822633431,1.06,653.29,652.13,0.61078402]
[1747822633728,1.06,653.29,652.14,0.61083621]
[1747822633930,0.26659108,653.47,652.12,0.59949596]
[1747822634132,0.26659108,653.47,652.13,0.61082154]
[1747822634332,3.82364943,653.49,652.14,0.61084595]
[1747822634531,3.82364943,653.49,652.15,0.59949596]
[1747822635537,3.82364943,653.49,651.96,0.64638802]
[1747822635538,3.82364943,653.49,652.16,0.59949596]
[1747822635738,0.2665676,653.48,652.16,0.59949596]
[1747822637039,1.438,653.47,652.16,0.59949596]
[1747822637240,1.438,653.47,652.17,0.59949596]
[1747822638541,1.7045676,653.47,652.17,0.59949596]
[1747822638742,1.7045676,653.47,652.18,0.59949596]
[1747822639543,1.7045676,653.47,651.97,0.64638802]